[Event "Early-Titled-Tuesday-Blitz-April-16-2024"]
[Site "Chess.com"]
[Date "2024.04.16"]
[Round "5"]
[White "bubeliang"]
[Black "Lion-Al-Messi"]
[Result "1-0"]
[WhiteElo "2780"]
[BlackElo "2578"]
[TimeControl "180+1"]
[EndTime "8:56:31 PDT"]
[Termination "bubeliang won by resignation"]

1. d4 {[%clk 0:03:00.9]} 1... Nf6 {[%clk 0:02:59.6]} 2. Nc3 {[%clk 0:03:00.6]}
2... d5 {[%clk 0:02:58.7]} 3. Bf4 {[%clk 0:03:00.8]} 3... a6 {[%clk 0:02:58.9]}
4. e3 {[%clk 0:02:58.3]} 4... e6 {[%clk 0:02:56.8]} 5. Nf3 {[%clk 0:02:58.5]}
5... Bd6 {[%clk 0:02:47.9]} 6. Ne5 {[%clk 0:02:55.7]} 6... c5 {[%clk 0:02:44.9]}
7. dxc5 {[%clk 0:02:55.6]} 7... Bxc5 {[%clk 0:02:42.7]} 8. Bd3 {[%clk
0:02:55.9]} 8... Nc6 {[%clk 0:02:41.6]} 9. O-O {[%clk 0:02:54.2]} 9... Bd7
{[%clk 0:02:36.2]} 10. e4 {[%clk 0:02:47.3]} 10... d4 {[%clk 0:02:27.2]} 11. Ne2
{[%clk 0:02:45.9]} 11... O-O {[%clk 0:02:25]} 12. Ng3 {[%clk 0:02:37.6]} 12...
Qe7 {[%clk 0:02:16.5]} 13. Nxc6 {[%clk 0:02:34.5]} 13... Bxc6 {[%clk 0:02:13.4]}
14. e5 {[%clk 0:02:28.2]} 14... Nd5 {[%clk 0:02:12.4]} 15. Bd2 {[%clk
0:02:27.9]} 15... Nb4 {[%clk 0:02:06.8]} 16. Bxb4 {[%clk 0:02:25.2]} 16... Bxb4
{[%clk 0:02:07.7]} 17. Qh5 {[%clk 0:02:25.4]} 17... g6 {[%clk 0:02:06.9]} 18.
Qg4 {[%clk 0:02:24]} 18... Rad8 {[%clk 0:02:03.1]} 19. Be4 {[%clk 0:02:16.4]}
19... Bd2 {[%clk 0:01:44.5]} 20. f4 {[%clk 0:02:06.3]} 20... Be3+ {[%clk
0:01:43.4]} 21. Kh1 {[%clk 0:02:05.6]} 21... Qc5 {[%clk 0:01:28.4]} 22. Qg5
{[%clk 0:01:53.5]} 22... f5 {[%clk 0:01:18.3]} 23. Bxc6 {[%clk 0:01:33.5]} 23...
Qxc6 {[%clk 0:01:19.2]} 24. Nh5 {[%clk 0:01:33]} 24... Qc7 {[%clk 0:01:08]} 25.
Nf6+ {[%clk 0:01:32.7]} 25... Kh8 {[%clk 0:01:07.5]} 26. Rf3 {[%clk 0:01:33.2]}
26... Qxe5 {[%clk 0:00:58]} 27. Nxh7 {[%clk 0:01:05.1]} 27... Qg7 {[%clk
0:00:34.7]} 28. Nxf8 {[%clk 0:00:53.3]} 28... Rxf8 {[%clk 0:00:35.6]} 29. Rd1
{[%clk 0:00:48.6]} 29... e5 {[%clk 0:00:26.2]} 30. Qh4+ {[%clk 0:00:47.1]} 30...
Qh7 {[%clk 0:00:19.3]} 31. Qxh7+ {[%clk 0:00:46.7]} 31... Kxh7 {[%clk
0:00:19.5]} 32. fxe5 {[%clk 0:00:47.6]} 32... Re8 {[%clk 0:00:19.4]} 33. c3
{[%clk 0:00:43]} 33... Rxe5 {[%clk 0:00:19.5]} 34. cxd4 {[%clk 0:00:43.4]} 34...
Bxd4 {[%clk 0:00:20.1]} 35. b3 {[%clk 0:00:41.2]} 35... f4 {[%clk 0:00:16.7]}
36. Rxf4 {[%clk 0:00:40.3]} 36... Be3 {[%clk 0:00:14.5]} 37. Rf7+ {[%clk
0:00:40.2]} 37... Kh6 {[%clk 0:00:14.4]} 38. Rxb7 {[%clk 0:00:40.9]} 38... a5
{[%clk 0:00:14.6]} 39. g3 {[%clk 0:00:39.5]} 39... Rf5 {[%clk 0:00:10.4]} 40.
Re7 {[%clk 0:00:37]} 40... Bc5 {[%clk 0:00:09.1]} 41. Re2 {[%clk 0:00:37.3]}
41... Bb4 {[%clk 0:00:08.9]} 42. Kg2 {[%clk 0:00:37.4]} 42... Kg7 {[%clk
0:00:08.1]} 43. Rd4 {[%clk 0:00:37.4]} 43... Rc5 {[%clk 0:00:07.5]} 44. Rg4
{[%clk 0:00:37.7]} 44... Rc6 {[%clk 0:00:07.3]} 45. h4 {[%clk 0:00:38]} 45...
Kh6 {[%clk 0:00:06.8]} 46. Kh3 {[%clk 0:00:37.1]} 46... Rc1 {[%clk 0:00:05.9]}
47. Re6 {[%clk 0:00:36.4]} 47... Bc3 {[%clk 0:00:04.3]} 48. Rgxg6+ {[%clk
0:00:35.6]} 48... Kh7 {[%clk 0:00:04.5]} 49. Rc6 {[%clk 0:00:35]} 49... Ra1
{[%clk 0:00:03.2]} 50. Rgd6 {[%clk 0:00:32.7]} 50... Bb4 {[%clk 0:00:02.5]} 51.
Rd7+ {[%clk 0:00:32.8]} 51... Kg8 {[%clk 0:00:02.5]} 52. Rc8+ {[%clk 0:00:33.3]}
52... Bf8 {[%clk 0:00:02.6]} 53. Rdd8 {[%clk 0:00:33.7]} 53... Rf1 {[%clk
0:00:02.6]} 54. Rxf8+ {[%clk 0:00:34]} 54... Rxf8 {[%clk 0:00:02.3]} 55. Rxf8+
{[%clk 0:00:34.9]} 55... Kxf8 {[%clk 0:00:02.7]} 56. a4 {[%clk 0:00:35.6]} 1-0

[Event "Early-Titled-Tuesday-Blitz-April-16-2024"]
[Site "Chess.com"]
[Date "2024.04.16"]
[Round "5"]
[White "VD_coach"]
[Black "AsselLesbekova"]
[Result "0-1"]
[WhiteElo "2633"]
[BlackElo "2422"]
[TimeControl "180+1"]
[EndTime "8:56:31 PDT"]
[Termination "AsselLesbekova won by resignation"]

1. Nf3 {[%clk 0:03:00.9]} 1... d5 {[%clk 0:02:58.6]} 2. d4 {[%clk 0:03:00.2]}
2... e6 {[%clk 0:02:58.9]} 3. c4 {[%clk 0:02:57.7]} 3... a6 {[%clk 0:02:58.8]}
4. cxd5 {[%clk 0:02:52.6]} 4... exd5 {[%clk 0:02:59.7]} 5. Nc3 {[%clk
0:02:52.3]} 5... c6 {[%clk 0:02:59.4]} 6. Bf4 {[%clk 0:02:43.8]} 6... Bd6 {[%clk
0:02:58.5]} 7. e3 {[%clk 0:02:44.3]} 7... Nf6 {[%clk 0:02:56.4]} 8. Bd3 {[%clk
0:02:42.4]} 8... O-O {[%clk 0:02:55.1]} 9. O-O {[%clk 0:02:34.2]} 9... Be6
{[%clk 0:02:54.4]} 10. Qc2 {[%clk 0:02:29]} 10... Re8 {[%clk 0:02:40.6]} 11. Ne5
{[%clk 0:02:10.2]} 11... Qc7 {[%clk 0:02:19.8]} 12. e4 {[%clk 0:01:57.8]} 12...
dxe4 {[%clk 0:01:48.5]} 13. Nxe4 {[%clk 0:01:54.8]} 13... Nxe4 {[%clk
0:01:48.7]} 14. Bxe4 {[%clk 0:01:52.7]} 14... g6 {[%clk 0:01:46.8]} 15. Rfe1
{[%clk 0:01:24.9]} 15... Nd7 {[%clk 0:01:30.4]} 16. Bf3 {[%clk 0:01:20.3]} 16...
Nxe5 {[%clk 0:01:05.2]} 17. Bxe5 {[%clk 0:01:09.4]} 17... Bxe5 {[%clk
0:01:04.4]} 18. Rxe5 {[%clk 0:01:02.2]} 18... Rad8 {[%clk 0:00:58.5]} 19. Qc3
{[%clk 0:00:55.6]} 19... Qd7 {[%clk 0:00:54.2]} 20. Rd1 {[%clk 0:00:47.6]} 20...
Bg4 {[%clk 0:00:51.5]} 21. h3 {[%clk 0:00:34.2]} 21... Bxf3 {[%clk 0:00:45.2]}
22. Rxe8+ {[%clk 0:00:32.5]} 22... Rxe8 {[%clk 0:00:38.2]} 23. Qxf3 {[%clk
0:00:33.4]} 23... Qe6 {[%clk 0:00:35.7]} 24. d5 {[%clk 0:00:31.4]} 24... cxd5
{[%clk 0:00:34]} 25. Qxd5 {[%clk 0:00:31.6]} 25... Qxd5 {[%clk 0:00:33.1]} 26.
Rxd5 {[%clk 0:00:31.1]} 26... Re1+ {[%clk 0:00:33.5]} 27. Kh2 {[%clk 0:00:31.2]}
27... Re2 {[%clk 0:00:34.2]} 28. b4 {[%clk 0:00:26.4]} 28... Rxa2 {[%clk
0:00:30.1]} 29. b5 {[%clk 0:00:21]} 29... Rxf2 {[%clk 0:00:26.1]} 30. bxa6
{[%clk 0:00:15.5]} 30... bxa6 {[%clk 0:00:27]} 31. Rd6 {[%clk 0:00:14.3]} 31...
a5 {[%clk 0:00:23.6]} 32. Ra6 {[%clk 0:00:11.8]} 32... Ra2 {[%clk 0:00:20.5]}
33. Kg3 {[%clk 0:00:11.7]} 33... Kf8 {[%clk 0:00:20.1]} 34. Ra7 {[%clk
0:00:11.8]} 34... a4 {[%clk 0:00:19.7]} 35. Kf4 {[%clk 0:00:11.6]} 35... a3
{[%clk 0:00:14]} 36. g4 {[%clk 0:00:11.7]} 36... Kg7 {[%clk 0:00:13.7]} 37. Kg5
{[%clk 0:00:11.3]} 37... Ra1 {[%clk 0:00:12.9]} 38. Kh4 {[%clk 0:00:09.9]} 38...
a2 {[%clk 0:00:12.3]} 39. g5 {[%clk 0:00:09.4]} 39... h6 {[%clk 0:00:11.8]} 40.
gxh6+ {[%clk 0:00:08.6]} 40... Kxh6 {[%clk 0:00:12.4]} 41. Ra6 {[%clk
0:00:08.3]} 41... f6 {[%clk 0:00:11.2]} 42. Ra3 {[%clk 0:00:02.4]} 42... g5+
{[%clk 0:00:11]} 0-1

[Event "Early-Titled-Tuesday-Blitz-April-16-2024"]
[Site "Chess.com"]
[Date "2024.04.16"]
[Round "5"]
[White "AmanteDeMoi"]
[Black "GreenPeach24"]
[Result "1-0"]
[WhiteElo "2605"]
[BlackElo "2445"]
[TimeControl "180+1"]
[EndTime "8:56:32 PDT"]
[Termination "AmanteDeMoi won by resignation"]

1. Nf3 {[%clk 0:02:47.6]} 1... Nf6 {[%clk 0:02:59.8]} 2. e3 {[%clk 0:02:47.7]}
2... d5 {[%clk 0:02:57.3]} 3. b3 {[%clk 0:02:47.8]} 3... e6 {[%clk 0:02:53.7]}
4. Bb2 {[%clk 0:02:48.7]} 4... Be7 {[%clk 0:02:54]} 5. Be2 {[%clk 0:02:48.1]}
5... O-O {[%clk 0:02:54.3]} 6. O-O {[%clk 0:02:48.8]} 6... c5 {[%clk 0:02:54.5]}
7. c4 {[%clk 0:02:47.7]} 7... Nc6 {[%clk 0:02:52.8]} 8. cxd5 {[%clk 0:02:48.6]}
8... exd5 {[%clk 0:02:52.7]} 9. d4 {[%clk 0:02:48.8]} 9... Bg4 {[%clk
0:02:43.9]} 10. dxc5 {[%clk 0:02:47.5]} 10... Bxc5 {[%clk 0:02:43.5]} 11. h3
{[%clk 0:02:45.1]} 11... Bh5 {[%clk 0:02:41.9]} 12. Nc3 {[%clk 0:02:36.2]} 12...
Re8 {[%clk 0:02:19.6]} 13. Rc1 {[%clk 0:02:35.6]} 13... Bf8 {[%clk 0:02:17.7]}
14. Nd4 {[%clk 0:02:31.6]} 14... Bxe2 {[%clk 0:02:16.4]} 15. Ncxe2 {[%clk
0:02:32.5]} 15... Ne5 {[%clk 0:02:13.1]} 16. Nf4 {[%clk 0:02:31.2]} 16... a6
{[%clk 0:02:09.5]} 17. Nf3 {[%clk 0:02:16.9]} 17... Bd6 {[%clk 0:01:52.6]} 18.
Kh1 {[%clk 0:01:47.4]} 18... Qa5 {[%clk 0:01:39.9]} 19. a3 {[%clk 0:01:34.3]}
19... Nxf3 {[%clk 0:01:34.1]} 20. Qxf3 {[%clk 0:01:35.2]} 20... Qb5 {[%clk
0:01:25.3]} 21. Bxf6 {[%clk 0:01:20.2]} 21... gxf6 {[%clk 0:01:23.1]} 22. Nxd5
{[%clk 0:01:10.8]} 22... Be5 {[%clk 0:01:21.3]} 23. Nxf6+ {[%clk 0:00:55.1]}
23... Bxf6 {[%clk 0:01:20.4]} 24. Qxf6 {[%clk 0:00:56]} 24... Rac8 {[%clk
0:01:20.6]} 25. b4 {[%clk 0:00:53.3]} 25... Qd3 {[%clk 0:01:14.1]} 26. Qb2
{[%clk 0:00:37]} 26... Qe4 {[%clk 0:01:06.1]} 27. Rxc8 {[%clk 0:00:32.3]} 27...
Rxc8 {[%clk 0:01:05.5]} 28. Rc1 {[%clk 0:00:33.2]} 28... Rd8 {[%clk 0:00:56.1]}
29. Qe2 {[%clk 0:00:32.3]} 29... Rd3 {[%clk 0:00:26.4]} 30. Rc8+ {[%clk
0:00:22.7]} 30... Kg7 {[%clk 0:00:25.7]} 31. Qb2+ {[%clk 0:00:23.6]} 31... f6
{[%clk 0:00:15.4]} 32. Rc7+ {[%clk 0:00:23.6]} 32... Kg6 {[%clk 0:00:11.7]} 33.
Qe2 {[%clk 0:00:24.3]} 33... h5 {[%clk 0:00:10.6]} 34. Re7 {[%clk 0:00:19.1]}
34... Qd5 {[%clk 0:00:06.5]} 35. e4 {[%clk 0:00:18.7]} 35... Rd1+ {[%clk
0:00:06.4]} 36. Kh2 {[%clk 0:00:18.9]} 36... Qd6+ {[%clk 0:00:06.8]} 37. e5
{[%clk 0:00:17.9]} 37... Qxe7 {[%clk 0:00:07.2]} 38. Qxd1 {[%clk 0:00:17.8]}
38... Qe6 {[%clk 0:00:07.6]} 39. Qd3+ {[%clk 0:00:17.2]} 39... f5 {[%clk
0:00:07.4]} 40. f4 {[%clk 0:00:16.7]} 40... h4 {[%clk 0:00:06.9]} 41. Qd6 {[%clk
0:00:14.4]} 41... Qxd6 {[%clk 0:00:06.9]} 42. exd6 {[%clk 0:00:15.3]} 42... Kf6
{[%clk 0:00:07.4]} 43. g4 {[%clk 0:00:13.2]} 43... Ke6 {[%clk 0:00:05.8]} 44. g5
{[%clk 0:00:13]} 44... Kxd6 {[%clk 0:00:06.1]} 45. Kg2 {[%clk 0:00:13.2]} 45...
Ke7 {[%clk 0:00:06.2]} 46. Kf2 {[%clk 0:00:13.2]} 1-0

[Event "Early-Titled-Tuesday-Blitz-April-16-2024"]
[Site "Chess.com"]
[Date "2024.04.16"]
[Round "5"]
[White "cansun"]
[Black "aljado"]
[Result "1-0"]
[WhiteElo "2393"]
[BlackElo "2138"]
[TimeControl "180+1"]
[EndTime "8:56:33 PDT"]
[Termination "cansun won on time"]

1. d4 {[%clk 0:03:00.9]} 1... Nf6 {[%clk 0:02:58.3]} 2. c4 {[%clk 0:03:01]} 2...
c5 {[%clk 0:02:58.3]} 3. d5 {[%clk 0:03:01]} 3... b5 {[%clk 0:02:58.1]} 4. cxb5
{[%clk 0:03:01.1]} 4... a6 {[%clk 0:02:58.2]} 5. f3 {[%clk 0:03:01.5]} 5... axb5
{[%clk 0:02:56.8]} 6. e4 {[%clk 0:03:02]} 6... d6 {[%clk 0:02:56.6]} 7. Bxb5+
{[%clk 0:02:59.4]} 7... Bd7 {[%clk 0:02:57]} 8. Na3 {[%clk 0:02:53.1]} 8... g6
{[%clk 0:02:51.1]} 9. Ne2 {[%clk 0:02:49.9]} 9... Bg7 {[%clk 0:02:50.7]} 10. O-O
{[%clk 0:02:49.4]} 10... O-O {[%clk 0:02:47.9]} 11. Bxd7 {[%clk 0:02:48.3]}
11... Nbxd7 {[%clk 0:02:46.7]} 12. Nb5 {[%clk 0:02:48.8]} 12... Qb6 {[%clk
0:02:41.3]} 13. Nec3 {[%clk 0:02:48.1]} 13... Rfb8 {[%clk 0:02:33.6]} 14. Qc2
{[%clk 0:02:38.2]} 14... Qa5 {[%clk 0:02:28]} 15. a4 {[%clk 0:02:25.5]} 15...
Nb6 {[%clk 0:02:24.2]} 16. Bg5 {[%clk 0:02:10.2]} 16... Qb4 {[%clk 0:02:11.7]}
17. Nc7 {[%clk 0:01:49.1]} 17... Ra7 {[%clk 0:01:57.5]} 18. N7b5 {[%clk
0:01:45.6]} 18... Raa8 {[%clk 0:01:54.4]} 19. Ra3 {[%clk 0:01:06.7]} 19... h6
{[%clk 0:01:20.9]} 20. Be3 {[%clk 0:01:00.8]} 20... Nc4 {[%clk 0:01:18.6]} 21.
Bd2 {[%clk 0:00:23.1]} 21... Nxa3 {[%clk 0:01:14.3]} 22. bxa3 {[%clk 0:00:23.4]}
22... Qc4 {[%clk 0:01:13.1]} 23. Rc1 {[%clk 0:00:19.2]} 23... Nd7 {[%clk
0:01:04.3]} 24. Nc7 {[%clk 0:00:19.3]} 24... Ra7 {[%clk 0:00:54.4]} 25. N7b5
{[%clk 0:00:18.7]} 25... Rab7 {[%clk 0:00:53.2]} 26. Kf2 {[%clk 0:00:17.4]}
26... Ne5 {[%clk 0:00:49.9]} 27. Ke3 {[%clk 0:00:14.6]} 27... h5 {[%clk
0:00:45.7]} 28. h3 {[%clk 0:00:14.9]} 28... Bh6+ {[%clk 0:00:43.2]} 29. Kf2
{[%clk 0:00:14.3]} 29... Nd3+ {[%clk 0:00:41.9]} 30. Kg1 {[%clk 0:00:13.8]}
30... Nxc1 {[%clk 0:00:41.7]} 31. Bxh6 {[%clk 0:00:13.7]} 31... Nd3 {[%clk
0:00:35.9]} 32. Qd2 {[%clk 0:00:13]} 32... Ne5 {[%clk 0:00:18.8]} 33. f4 {[%clk
0:00:10.4]} 33... Nd3 {[%clk 0:00:15.6]} 34. f5 {[%clk 0:00:09.9]} 34... Ne5
{[%clk 0:00:13.4]} 35. fxg6 {[%clk 0:00:09.6]} 35... fxg6 {[%clk 0:00:11.1]} 36.
Qg5 {[%clk 0:00:09.7]} 36... Kh7 {[%clk 0:00:10.1]} 37. Qf4 {[%clk 0:00:05.4]}
37... Qd3 {[%clk 0:00:07.6]} 38. Kh2 {[%clk 0:00:04.5]} 38... Re8 {[%clk
0:00:03.3]} 39. Bg5 {[%clk 0:00:03.3]} 39... Rbb8 {[%clk 0:00:01.6]} 40. a5
{[%clk 0:00:03.3]} 1-0

[Event "Early-Titled-Tuesday-Blitz-April-16-2024"]
[Site "Chess.com"]
[Date "2024.04.16"]
[Round "5"]
[White "FuenfgegenWilly"]
[Black "Let_it_be_1"]
[Result "1-0"]
[WhiteElo "2453"]
[BlackElo "2583"]
[TimeControl "180+1"]
[EndTime "8:56:34 PDT"]
[Termination "FuenfgegenWilly won on time"]

1. d4 {[%clk 0:03:00.9]} 1... d5 {[%clk 0:02:58.4]} 2. c4 {[%clk 0:03:01.3]}
2... e6 {[%clk 0:02:57.7]} 3. Nc3 {[%clk 0:03:01.2]} 3... Be7 {[%clk 0:02:58]}
4. Qc2 {[%clk 0:02:59.1]} 4... Nf6 {[%clk 0:02:58]} 5. cxd5 {[%clk 0:02:56.5]}
5... exd5 {[%clk 0:02:58]} 6. Bg5 {[%clk 0:02:56.9]} 6... c6 {[%clk 0:02:58.1]}
7. e3 {[%clk 0:02:57.2]} 7... Nbd7 {[%clk 0:02:44.1]} 8. Bd3 {[%clk 0:02:57]}
8... O-O {[%clk 0:02:42.9]} 9. h3 {[%clk 0:02:47.9]} 9... Re8 {[%clk 0:02:42.6]}
10. Bf4 {[%clk 0:02:41.1]} 10... Nf8 {[%clk 0:02:41.9]} 11. Nf3 {[%clk
0:02:40.2]} 11... Ng6 {[%clk 0:02:40.3]} 12. Bh2 {[%clk 0:02:40]} 12... Bd6
{[%clk 0:02:40]} 13. Bxd6 {[%clk 0:02:39]} 13... Qxd6 {[%clk 0:02:40.3]} 14.
O-O-O {[%clk 0:02:38.6]} 14... Qe7 {[%clk 0:02:25.2]} 15. Kb1 {[%clk 0:02:27.8]}
15... Ne4 {[%clk 0:02:24.5]} 16. Bxe4 {[%clk 0:02:27.1]} 16... dxe4 {[%clk
0:02:24.5]} 17. Nd2 {[%clk 0:02:27.8]} 17... f5 {[%clk 0:02:24.2]} 18. d5 {[%clk
0:02:26.6]} 18... Ne5 {[%clk 0:02:13.7]} 19. Qb3 {[%clk 0:02:07.1]} 19... Qf7
{[%clk 0:02:03.6]} 20. Nc4 {[%clk 0:01:54.8]} 20... cxd5 {[%clk 0:01:40.4]} 21.
Nxd5 {[%clk 0:01:40.1]} 21... Nxc4 {[%clk 0:01:21.7]} 22. Qxc4 {[%clk
0:01:34.1]} 22... Be6 {[%clk 0:01:21.8]} 23. Rd4 {[%clk 0:01:19.7]} 23... Rac8
{[%clk 0:01:00.1]} 24. Qb3 {[%clk 0:01:19.6]} 24... Rc5 {[%clk 0:00:59.2]} 25.
Rhd1 {[%clk 0:01:19]} 25... h6 {[%clk 0:00:41.6]} 26. R1d2 {[%clk 0:01:09]}
26... Kh8 {[%clk 0:00:36.2]} 27. Qd1 {[%clk 0:01:08.9]} 27... b5 {[%clk
0:00:19.9]} 28. g4 {[%clk 0:00:51.8]} 28... fxg4 {[%clk 0:00:18.1]} 29. hxg4
{[%clk 0:00:52.2]} 29... a5 {[%clk 0:00:17.8]} 30. Rxe4 {[%clk 0:00:34.7]} 30...
Rec8 {[%clk 0:00:11.6]} 31. Red4 {[%clk 0:00:27.3]} 31... Rc1+ {[%clk
0:00:07.7]} 32. Qxc1 {[%clk 0:00:27.2]} 32... Rxc1+ {[%clk 0:00:07.3]} 33. Kxc1
{[%clk 0:00:28.1]} 33... Bxg4 {[%clk 0:00:07.3]} 34. Rxg4 {[%clk 0:00:19.2]}
34... Qf3 {[%clk 0:00:07.1]} 35. Rgd4 {[%clk 0:00:18.5]} 35... b4 {[%clk
0:00:06.9]} 36. b3 {[%clk 0:00:14.9]} 36... Kh7 {[%clk 0:00:06.8]} 37. Kb2
{[%clk 0:00:14.7]} 37... Qf5 {[%clk 0:00:06.2]} 38. Rf4 {[%clk 0:00:14]} 38...
Qe5+ {[%clk 0:00:06.1]} 39. Rdd4 {[%clk 0:00:13.5]} 39... Qd6 {[%clk 0:00:05.8]}
40. Rd2 {[%clk 0:00:08.4]} 40... Qc5 {[%clk 0:00:05.5]} 41. Rc4 {[%clk
0:00:08.1]} 41... Qf8 {[%clk 0:00:05]} 42. e4 {[%clk 0:00:07.7]} 42... Qd8
{[%clk 0:00:02]} 43. Rcd4 {[%clk 0:00:08.6]} 43... Qg5 {[%clk 0:00:01.3]} 44. f4
{[%clk 0:00:08.7]} 44... Qg3 {[%clk 0:00:01.4]} 45. e5 {[%clk 0:00:08.7]} 45...
Qc3+ {[%clk 0:00:01.3]} 46. Nxc3 {[%clk 0:00:08.8]} 1-0

[Event "Early-Titled-Tuesday-Blitz-April-16-2024"]
[Site "Chess.com"]
[Date "2024.04.16"]
[Round "5"]
[White "schachlana"]
[Black "JonSnowNW1"]
[Result "0-1"]
[WhiteElo "2301"]
[BlackElo "2543"]
[TimeControl "180+1"]
[EndTime "8:56:34 PDT"]
[Termination "JonSnowNW1 won by checkmate"]

1. e4 {[%clk 0:03:00.9]} 1... c5 {[%clk 0:02:58.4]} 2. Nf3 {[%clk 0:03:00.8]}
2... d6 {[%clk 0:02:58.9]} 3. d4 {[%clk 0:03:00]} 3... cxd4 {[%clk 0:02:59.8]}
4. Qxd4 {[%clk 0:03:00.6]} 4... a6 {[%clk 0:02:59.5]} 5. c4 {[%clk 0:03:00.3]}
5... Nc6 {[%clk 0:03:00]} 6. Qe3 {[%clk 0:03:01]} 6... g6 {[%clk 0:02:59.9]} 7.
h3 {[%clk 0:03:01.7]} 7... Bg7 {[%clk 0:02:56.1]} 8. Nc3 {[%clk 0:02:59.3]} 8...
Nf6 {[%clk 0:02:54.9]} 9. Be2 {[%clk 0:02:58.8]} 9... O-O {[%clk 0:02:55.5]} 10.
O-O {[%clk 0:02:58.7]} 10... Nd7 {[%clk 0:02:54.7]} 11. Rd1 {[%clk 0:02:57.3]}
11... Nc5 {[%clk 0:02:46.5]} 12. Rb1 {[%clk 0:02:53.2]} 12... e5 {[%clk
0:02:24.4]} 13. Nd5 {[%clk 0:02:32.3]} 13... Ne6 {[%clk 0:01:53.3]} 14. b3
{[%clk 0:02:15.7]} 14... f5 {[%clk 0:01:16.9]} 15. Ba3 {[%clk 0:02:10.9]} 15...
fxe4 {[%clk 0:01:05.9]} 16. Qxe4 {[%clk 0:02:11.8]} 16... Ned4 {[%clk 0:01:04]}
17. Nxd4 {[%clk 0:02:02.9]} 17... Nxd4 {[%clk 0:01:02.8]} 18. Bg4 {[%clk
0:02:00.7]} 18... Bf5 {[%clk 0:00:36.4]} 19. Bxf5 {[%clk 0:01:52.7]} 19... gxf5
{[%clk 0:00:32.7]} 20. Qd3 {[%clk 0:01:10]} 20... e4 {[%clk 0:00:24.9]} 21. Qd2
{[%clk 0:01:09]} 21... f4 {[%clk 0:00:22.1]} 22. Bb2 {[%clk 0:01:02.2]} 22...
Ne6 {[%clk 0:00:19.5]} 23. Bxg7 {[%clk 0:00:59.4]} 23... Kxg7 {[%clk 0:00:19]}
24. Re1 {[%clk 0:00:56.1]} 24... e3 {[%clk 0:00:12.9]} 25. fxe3 {[%clk
0:00:55.7]} 25... f3 {[%clk 0:00:11.8]} 26. gxf3 {[%clk 0:00:50.6]} 26... Ng5
{[%clk 0:00:12.1]} 27. Qd4+ {[%clk 0:00:44.4]} 27... Kg8 {[%clk 0:00:08.8]} 28.
Kh1 {[%clk 0:00:40.5]} 28... Rxf3 {[%clk 0:00:07]} 29. Qg4 {[%clk 0:00:25.8]}
29... h5 {[%clk 0:00:06.1]} 30. Qg2 {[%clk 0:00:20.1]} 30... Rxh3+ {[%clk
0:00:06.3]} 31. Kg1 {[%clk 0:00:20.4]} 31... h4 {[%clk 0:00:06.8]} 32. Kf2
{[%clk 0:00:15.4]} 32... Rg3 {[%clk 0:00:06.4]} 33. Qh2 {[%clk 0:00:12]} 33...
Qf8+ {[%clk 0:00:07]} 34. Ke2 {[%clk 0:00:12.2]} 34... Qf3+ {[%clk 0:00:07.6]}
35. Kd3 {[%clk 0:00:11.5]} 35... Qe4+ {[%clk 0:00:07.4]} 36. Kc3 {[%clk
0:00:09.9]} 36... Qe5+ {[%clk 0:00:06.7]} 37. Kb4 {[%clk 0:00:06.7]} 37... a5+
{[%clk 0:00:06]} 38. Kb5 {[%clk 0:00:07.4]} 38... a4 {[%clk 0:00:03.8]} 39. Qxh4
{[%clk 0:00:08]} 39... Qe8+ {[%clk 0:00:04.1]} 40. Kb4 {[%clk 0:00:07.5]} 40...
Qd8 {[%clk 0:00:03.7]} 41. Qxg3 {[%clk 0:00:06.5]} 41... Qa5+ {[%clk 0:00:03.5]}
42. Ka3 {[%clk 0:00:07.1]} 42... axb3+ {[%clk 0:00:03.7]} 43. Kb2 {[%clk
0:00:07.4]} 43... Qxa2+ {[%clk 0:00:04]} 44. Kc3 {[%clk 0:00:08]} 44... Qc2+
{[%clk 0:00:04.9]} 45. Kd4 {[%clk 0:00:08.7]} 45... Qd2# {[%clk 0:00:04.9]} 0-1

[Event "Early-Titled-Tuesday-Blitz-April-16-2024"]
[Site "Chess.com"]
[Date "2024.04.16"]
[Round "5"]
[White "martinmena"]
[Black "Payyappat"]
[Result "0-1"]
[WhiteElo "2164"]
[BlackElo "2534"]
[TimeControl "180+1"]
[EndTime "8:56:34 PDT"]
[Termination "Payyappat won by checkmate"]

1. c4 {[%clk 0:02:58.7]} 1... c5 {[%clk 0:02:59.5]} 2. g3 {[%clk 0:02:54.7]}
2... Nc6 {[%clk 0:02:58]} 3. Bg2 {[%clk 0:02:54.1]} 3... Nf6 {[%clk 0:02:57.7]}
4. Nc3 {[%clk 0:02:52.4]} 4... g6 {[%clk 0:02:57]} 5. e4 {[%clk 0:02:51.7]} 5...
Bg7 {[%clk 0:02:56.4]} 6. d3 {[%clk 0:02:48.3]} 6... O-O {[%clk 0:02:54.4]} 7.
Nge2 {[%clk 0:02:47.5]} 7... d6 {[%clk 0:02:54.4]} 8. O-O {[%clk 0:02:46.8]}
8... e5 {[%clk 0:02:46.2]} 9. h3 {[%clk 0:02:46.1]} 9... Nh5 {[%clk 0:02:44.9]}
10. Be3 {[%clk 0:02:23.9]} 10... f5 {[%clk 0:02:43.1]} 11. Qd2 {[%clk 0:02:19]}
11... f4 {[%clk 0:02:28.2]} 12. gxf4 {[%clk 0:02:17.4]} 12... Qh4 {[%clk
0:02:21.3]} 13. f5 {[%clk 0:02:02.4]} 13... Nf4 {[%clk 0:02:19.2]} 14. Nxf4
{[%clk 0:01:49.4]} 14... exf4 {[%clk 0:02:18.6]} 15. Bxf4 {[%clk 0:01:49.2]}
15... gxf5 {[%clk 0:02:19.5]} 16. Bxd6 {[%clk 0:01:44.9]} 16... Rf6 {[%clk
0:02:06.3]} 17. Bg3 {[%clk 0:01:32.8]} 17... Qh5 {[%clk 0:02:02.1]} 18. e5
{[%clk 0:01:26.9]} 18... Rg6 {[%clk 0:01:56.4]} 19. Nd5 {[%clk 0:01:09.5]} 19...
Bh6 {[%clk 0:01:15.1]} 20. Qd1 {[%clk 0:00:43.4]} 20... Qxd1 {[%clk 0:00:44.5]}
21. Raxd1 {[%clk 0:00:44.3]} 21... f4 {[%clk 0:00:38.8]} 22. Nxf4 {[%clk
0:00:27]} 22... Bxf4 {[%clk 0:00:36.8]} 23. Bxf4 {[%clk 0:00:27.1]} 23... Bxh3
{[%clk 0:00:36.5]} 24. Bg3 {[%clk 0:00:26.6]} 24... Bxg2 {[%clk 0:00:34.7]} 25.
Kxg2 {[%clk 0:00:27.5]} 25... Nxe5 {[%clk 0:00:33.2]} 26. Rfe1 {[%clk
0:00:19.4]} 26... Nc6 {[%clk 0:00:19]} 27. Re4 {[%clk 0:00:17.8]} 27... Rd8
{[%clk 0:00:17.1]} 28. f4 {[%clk 0:00:14.4]} 28... Nd4 {[%clk 0:00:15.9]} 29.
Rf1 {[%clk 0:00:11.8]} 29... Nf5 {[%clk 0:00:15.8]} 30. Rf3 {[%clk 0:00:11]}
30... Nh4+ {[%clk 0:00:15.7]} 31. Kf2 {[%clk 0:00:10.6]} 31... Nxf3 {[%clk
0:00:16.6]} 32. Kxf3 {[%clk 0:00:05.5]} 32... Rxd3+ {[%clk 0:00:16.6]} 33. Ke2
{[%clk 0:00:05]} 33... Rdxg3 {[%clk 0:00:17.5]} 34. Re7 {[%clk 0:00:02.1]} 34...
Rg2+ {[%clk 0:00:16.5]} 35. Kf3 {[%clk 0:00:02.1]} 35... R6g3+ {[%clk
0:00:17.1]} 36. Ke4 {[%clk 0:00:02.7]} 36... Re2+ {[%clk 0:00:18]} 37. Kd5
{[%clk 0:00:02.8]} 37... Rxe7 {[%clk 0:00:18.9]} 38. f5 {[%clk 0:00:03.4]} 38...
Rf3 {[%clk 0:00:19]} 39. f6 {[%clk 0:00:03.1]} 39... Rxf6 {[%clk 0:00:19.9]} 40.
b3 {[%clk 0:00:03.6]} 40... Rf5+ {[%clk 0:00:20]} 41. Kd6 {[%clk 0:00:02.3]}
41... Kf7 {[%clk 0:00:20.5]} 42. b4 {[%clk 0:00:02.6]} 42... Re6+ {[%clk
0:00:21.4]} 43. Kd7 {[%clk 0:00:02.5]} 43... Rff6 {[%clk 0:00:21.2]} 44. b5
{[%clk 0:00:01.9]} 44... Re7+ {[%clk 0:00:21.3]} 45. Kc8 {[%clk 0:00:02]} 45...
Rg6 {[%clk 0:00:22.2]} 46. Kd8 {[%clk 0:00:01.3]} 46... Rg8# {[%clk 0:00:23.1]}
0-1